bitfinex/quotes_SOLUSD_20250201
["timestamp","ask_amount","ask_price","bid_price","bid_amount"]
[1738409824181,61.4727916,227.75,227.72,0.063]
[1738409824379,61.4727916,227.75,227.74,8.21909571]
[1738409824577,0.03,227.76,227.75,13.41184853]
[1738409824770,0.03,227.76,227.75,24.29705315]
[1738409824997,0.03,227.76,227.75,25.42254315]
[1738409825179,0.03,227.77,227.76,1.0]
[1738409825381,0.03,227.77,227.76,29.21909571]
[1738409825579,0.03,227.77,227.76,43.13290424]
[1738409825866,0.03,227.77,227.76,42.00741424]
[1738409826076,0.03,227.77,227.76,45.25895309]
[1738409827587,0.03,227.77,227.76,45.00797309]
[1738409828882,0.03,227.77,227.76,45.25895309]
[1738409830790,0.03,227.77,227.76,45.00797309]
[1738409830989,0.03,227.77,227.76,41.75643424]
[1738409831789,0.03,227.77,227.76,41.63094424]
[1738409832094,0.03,227.77,227.76,33.41184853]
[1738409832262,0.03,227.77,227.76,41.63094424]
[1738409833873,0.03,227.77,227.76,13.41184853]
[1738409834084,8.24909571,227.77,227.72,0.063]
[1738409834279,8.21909571,227.76,227.72,0.063]
[1738409834480,8.24909571,227.77,227.72,13.47484853]
[1738409835164,0.03,227.77,227.72,13.47484853]
[1738409837493,0.03,227.77,227.72,21.69394424]
[1738409837692,8.24909571,227.77,227.72,13.47484853]
[1738409838999,0.03,227.77,227.72,13.47484853]
[1738409839797,61.5027916,227.77,227.72,13.47484853]
[1738409842709,8.21909571,227.76,227.72,0.063]
[1738409842878,8.21909571,227.75,227.72,0.063]
[1738409845584,8.21909571,227.73,227.72,0.063]
[1738409846509,69.69188731,227.74,227.72,0.063]
[1738409847707,61.4727916,227.74,227.72,0.063]
[1738409848810,61.4727916,227.73,227.72,0.063]
[1738409849606,69.69188731,227.73,227.72,0.063]
[1738409849779,61.4727916,227.73,227.72,0.063]
[1738409855699,69.69188731,227.73,227.72,0.063]
[1738409856807,8.21909571,227.73,227.72,0.0033]
[1738409858087,8.21909571,227.65,227.64,2.3827882]
[1738409868023,8.21909571,227.66,227.64,2.3827882]
[1738409869020,8.21909571,227.65,227.64,2.3827882]
[1738409870330,8.34458571,227.65,227.64,2.3827882]
[1738409870703,0.12549,227.64,227.63,0.063]
[1738409871031,28.34458571,227.64,227.63,0.063]
[1738409871416,0.12549,227.63,227.59,0.063]
[1738409871619,8.21909571,227.6,227.53,0.063]
[1738409871925,8.21909571,227.54,227.53,0.063]
[1738409882022,8.34458571,227.54,227.53,0.063]
[1738409884726,8.21909571,227.54,227.53,0.063]
[1738409885846,33.03187284,227.59,227.53,0.063]
[1738409885847,8.21909571,227.55,227.53,0.063]
[1738409886054,8.21909571,227.56,227.53,0.063]
[1738409887043,8.24909571,227.59,227.53,0.063]
[1738409887463,8.21909571,227.58,227.53,0.063]
[1738409887866,12.75651851,227.57,227.53,0.063]
[1738409889328,12.75651851,227.58,227.53,0.063]
[1738409889729,0.03,227.59,227.54,13.41184853]
[1738409889937,82.6,227.57,227.55,12.75651851]
[1738409890147,82.6,227.57,227.56,1.5614]
[1738409892355,95.35651851,227.57,227.56,1.5614]
[1738409892569,95.35651851,227.57,227.53,0.063]
[1738409892734,12.75651851,227.56,227.53,13.47484853]
[1738409893536,12.75651851,227.54,227.53,0.063]
[1738409898474,12.88200851,227.54,227.53,0.063]
[1738409899945,12.75651851,227.54,227.53,0.063]
[1738409900153,12.75651851,227.56,227.53,0.063]
[1738409900751,12.75651851,227.55,227.53,0.063]
[1738409901647,12.75651851,227.54,227.53,0.063]
[1738409907178,12.88200851,227.54,227.53,0.063]
[1738409911783,8.29421888,227.54,227.53,0.063]
[1738409936417,8.41970888,227.54,227.53,0.063]
[1738409946312,9.41970888,227.54,227.53,0.063]
[1738409948612,9.41970888,227.54,227.52,0.063]
[1738409948613,0.12549,227.5,227.39,1.7211]
[1738409948922,8.16872888,227.45,227.39,1.7211]
[1738409952608,8.29421888,227.45,227.39,1.7211]
[1738409953930,8.16872888,227.46,227.39,9.88982888]
[1738409954118,8.16872888,227.47,227.4,15.16292048]
[1738409954944,8.16872888,227.48,227.42,8.16872888]
[1738409955625,8.16872888,227.49,227.42,8.16872888]
[1738409955812,8.16872888,227.49,227.45,1.6053]
[1738409956320,7.16872888,227.49,227.45,1.6053]
[1738409958639,82.6,227.46,227.45,1.6053]
[1738409965046,82.576,227.46,227.45,1.6053]
[1738409967648,82.576,227.46,227.45,1.6683]
[1738409969143,90.74472888,227.46,227.45,1.6683]
[1738409972034,82.576,227.46,227.45,1.6683]
[1738409974221,90.74472888,227.46,227.45,1.6683]
[1738409975355,90.74472888,227.46,227.45,0.063]
[1738409976444,8.16872888,227.46,227.45,0.063]
[1738409979450,8.29421888,227.46,227.45,0.063]
[1738409979830,82.85098,227.45,227.41,0.063]
[1738409980029,91.01970888,227.45,227.41,0.063]
[1738409980249,8.29421888,227.44,227.41,0.063]
[1738409980852,20.12549,227.42,227.41,0.063]
[1738409981052,28.29421888,227.42,227.41,0.063]
[1738409991052,29.29421888,227.42,227.4,0.4936916]
[1738409991251,0.12549,227.4,227.39,0.063]
[1738409991464,40.9691344,227.4,227.39,0.063]
[1738409992748,41.9691344,227.4,227.38,0.063]
[1738409992949,40.8436444,227.39,227.38,0.063]
[1738409993348,8.16872888,227.31,227.28,7.8256]
[1738409993753,8.16872888,227.31,227.23,6.6586]
[1738409994561,8.29421888,227.31,227.23,6.6586]
[1738409999883,8.29421888,227.31,227.22,1.664]
[1738410000356,8.41970888,227.31,227.22,1.664]
[1738410005682,8.16872888,227.23,227.22,1.664]
[1738410005888,8.16872888,227.23,227.22,0.063]
[1738410010597,8.29421888,227.23,227.22,0.063]
[1738410011174,8.41970888,227.23,227.22,0.063]
[1738410012731,8.29421888,227.23,227.22,0.063]
[1738410012901,8.16872888,227.23,227.22,0.063]
[1738410013502,8.29421888,227.23,227.22,0.063]
[1738410016512,8.16872888,227.23,227.22,0.063]
[1738410025299,8.29421888,227.23,227.22,0.063]
[1738410028528,8.16872888,227.24,227.22,0.063]
[1738410028907,8.16872888,227.23,227.22,0.063]
[1738410034505,8.16872888,227.24,227.22,0.063]
[1738410034912,8.16872888,227.25,227.22,0.063]
[1738410036631,8.16872888,227.24,227.22,0.063]
[1738410038011,8.16872888,227.23,227.22,0.063]
[1738410044039,8.16872888,227.24,227.22,0.063]
[1738410050340,8.16872888,227.23,227.22,0.063]
[1738410056829,8.16872888,227.24,227.22,0.063]
[1738410059935,8.16872888,227.23,227.22,0.063]
[1738410064547,8.29421888,227.23,227.22,0.063]
[1738410065058,8.16872888,227.23,227.22,0.063]
[1738410067674,8.16872888,227.25,227.22,0.063]
[1738410068465,82.6,227.24,227.22,0.063]
[1738410072368,8.16872888,227.23,227.22,0.063]
[1738410077458,82.6,227.24,227.22,8.23172888]
[1738410077783,82.6,227.24,227.23,1.6037]
[1738410078551,90.76872888,227.29,227.24,13.41184853]
[1738410078791,82.6,227.29,227.26,13.41184853]
[1738410078987,82.6,227.29,227.26,8.16872888]
[1738410079779,82.6,227.29,227.27,8.16872888]
[1738410080072,0.063,227.3,227.29,13.41184853]
[1738410080447,0.063,227.3,227.28,13.41184853]
[1738410081373,0.063,227.3,227.28,21.58057741]
[1738410081556,0.063,227.3,227.29,8.16872888]
[1738410082348,0.063,227.3,227.29,8.29421888]
[1738410082553,0.063,227.3,227.29,29.67346741]
[1738410084978,0.063,227.3,227.29,30.79895741]
[1738410085151,0.063,227.3,227.29,31.45864316]
[1738410085348,0.063,227.3,227.29,32.58413316]
[1738410085576,0.063,227.38,227.31,0.12549]
[1738410085781,0.063,227.38,227.34,13.41184853]
[1738410086159,0.063,227.38,227.33,0.12549]
[1738410087067,0.063,227.38,227.33,8.16872888]
[1738410087694,0.063,227.38,227.32,8.16872888]
[1738410087856,0.063,227.38,227.32,8.29421888]
[1738410088459,8.23172888,227.38,227.3,8.16872888]
[1738410088656,8.16872888,227.37,227.31,13.53733853]
[1738410091081,8.16872888,227.37,227.31,13.41184853]
[1738410091261,8.16872888,227.36,227.31,13.41184853]
[1738410092270,8.16872888,227.36,227.3,13.41184853]
[1738410093283,0.063,227.38,227.33,13.41184853]
[1738410094083,8.23172888,227.38,227.31,8.29421888]
[1738410096083,8.16872888,227.36,227.3,13.41184853]
[1738410096284,8.16872888,227.36,227.29,8.16872888]
[1738410096681,8.16872888,227.37,227.3,29.16872888]
[1738410096881,8.23172888,227.38,227.32,13.41184853]
[1738410097483,8.16872888,227.37,227.32,13.41184853]
[1738410098666,8.23172888,227.38,227.32,21.58057741]
[1738410100589,0.063,227.38,227.32,21.58057741]
[1738410100907,0.063,227.38,227.35,13.41184853]
[1738410101202,0.063,227.38,227.33,8.29421888]
[1738410101695,8.23172888,227.38,227.32,13.41184853]
[1738410101995,8.16872888,227.37,227.32,13.41184853]
[1738410103798,8.23172888,227.38,227.32,13.41184853]
[1738410106499,0.063,227.38,227.32,21.58057741]
[1738410107197,82.663,227.38,227.32,21.58057741]
[1738410108794,0.063,227.38,227.37,24.35186741]
[1738410108987,0.063,227.38,227.37,58.0627078]
[1738410109190,0.063,227.43,227.42,13.53733853]
[1738410109375,0.063,227.43,227.42,23.36544666]
[1738410109879,0.063,227.43,227.42,22.70606741]
[1738410113002,0.063,227.43,227.42,23.36546341]
[1738410113603,0.063,227.43,227.42,22.70606741]
[1738410121088,0.063,227.43,227.38,8.16872888]
[1738410121306,0.063,227.43,227.38,15.46662888]
[1738410122306,0.063,227.43,227.39,13.41184853]
[1738410122617,8.23172888,227.43,227.39,13.41184853]
[1738410124016,0.063,227.43,227.39,13.41184853]
[1738410124315,8.23172888,227.43,227.39,13.41184853]
[1738410124691,8.16872888,227.42,227.38,2.9]
[1738410125010,8.16872888,227.4,227.38,2.9]
[1738410125335,8.16872888,227.4,227.35,0.12549]
[1738410126330,8.16872888,227.38,227.32,1.6372]
[1738410126616,8.16872888,227.37,227.32,4.5372]
[1738410126826,8.16872888,227.37,227.33,13.41184853]
[1738410127029,8.16872888,227.38,227.33,13.41184853]
[1738410127238,8.16872888,227.39,227.33,16.66653872]
[1738410127402,8.16872888,227.4,227.33,24.8352676]
[1738410127594,82.6,227.42,227.36,21.58057741]
[1738410128420,90.76872888,227.42,227.36,13.41184853]
[1738410130124,8.16872888,227.38,227.32,4.66269]
[1738410130322,8.16872888,227.38,227.33,13.41184853]
[1738410130522,8.16872888,227.4,227.33,21.58057741]
[1738410131736,8.16872888,227.41,227.34,8.16872888]
[1738410132619,8.16872888,227.4,227.33,21.58057741]
[1738410133724,8.16872888,227.41,227.34,8.16872888]
[1738410135215,8.16872888,227.4,227.33,21.61057741]
[1738410136215,8.16872888,227.41,227.34,8.16872888]
[1738410136927,82.6,227.4,227.34,8.16872888]
[1738410142839,82.6,227.39,227.35,13.41184853]
[1738410143840,82.6,227.39,227.34,13.41184853]
[1738410144341,8.16872888,227.38,227.33,0.03]
[1738410144841,90.76872888,227.39,227.33,13.44184853]
[1738410146516,90.76872888,227.39,227.33,21.61057741]
[1738410147040,90.76872888,227.39,227.34,3.25981534]
[1738410147226,90.76872888,227.39,227.34,3.28981534]
[1738410148236,90.76872888,227.39,227.34,0.03]
[1738410148628,8.16872888,227.35,227.34,0.03]
[1738410150538,8.29421888,227.35,227.34,0.03]
[1738410150739,8.41970888,227.35,227.34,0.03]
[1738410152446,1.09219,227.34,227.33,0.03]
[1738410152645,30.38640888,227.34,227.3,0.03]
[1738410152950,8.29421888,227.31,227.3,0.03]
[1738410155050,8.41970888,227.31,227.3,0.03]
[1738410155251,8.16872888,227.23,227.22,0.063]
[1738410160755,90.76872888,227.23,227.22,0.063]
[1738410185758,89.78162504,227.23,227.22,0.063]
[1738410188570,82.6,227.23,227.22,0.063]
[1738410188771,82.6,227.27,227.22,13.47484853]
[1738410188971,82.6,227.27,227.24,8.16872888]
[1738410189281,82.6,227.27,227.23,8.16872888]
[1738410189576,82.6,227.27,227.23,13.41184853]
[1738410191657,8.16872888,227.26,227.22,1.5784]
[1738410191963,8.16872888,227.25,227.22,1.5784]
[1738410192553,8.16872888,227.26,227.22,1.5784]
[1738410193078,90.76872888,227.27,227.22,1.5784]
[1738410193465,82.6,227.26,227.22,1.5784]
[1738410193784,82.6,227.26,227.23,13.41184853]
[1738410193958,82.6,227.26,227.23,21.58057741]
[1738410196280,82.6,227.26,227.23,13.41184853]
[1738410198860,82.6,227.26,227.23,21.58057741]
[1738410200781,82.6,227.26,227.23,13.41184853]
[1738410202165,82.6,227.26,227.23,21.58057741]
[1738410203559,82.6,227.26,227.23,13.41184853]
[1738410204584,8.16872888,227.25,227.22,1.5784]
[1738410204767,8.16872888,227.24,227.22,1.5784]
[1738410205281,8.16872888,227.23,227.22,0.063]
[1738410205863,0.063,227.3,227.22,0.063]
[1738410205864,8.16872888,227.25,227.22,0.063]
[1738410210571,8.16872888,227.27,227.22,0.063]
[1738410211294,82.6,227.26,227.22,0.063]
[1738410211589,90.76872888,227.26,227.22,0.063]
[1738410217094,82.6,227.25,227.22,0.063]
[1738410218896,82.6,227.25,227.24,9.77952888]
[1738410219070,82.6,227.25,227.24,23.19137741]
[1738410219397,82.6,227.25,227.24,29.48977741]
[1738410221497,82.6,227.25,227.24,32.76438264]
[1738410221995,0.063,227.26,227.24,32.76438264]
[1738410222195,0.063,227.26,227.25,8.16872888]
[1738410223896,0.063,227.26,227.25,11.44333411]
[1738410225985,0.063,227.26,227.25,24.85518264]
[1738410226501,0.063,227.26,227.25,24.98067264]
[1738410226700,0.063,227.26,227.25,29.38107264]
[1738410228818,0.063,227.26,227.25,29.50656264]
[1738410230600,0.063,227.26,227.25,33.69273875]
[1738410232707,0.063,227.26,227.25,29.16684875]
[1738410234010,0.063,227.26,227.25,16.68645376]
[1738410236391,0.063,227.26,227.25,24.85518264]
[1738410238819,0.063,227.26,227.25,16.68645376]
[1738410240324,0.063,227.26,227.25,24.85518264]
[1738410243720,0.063,227.26,227.25,29.63205264]
[1738410243905,0.063,227.26,227.25,64.43245816]
[1738410244114,0.063,227.26,227.25,70.66755816]
[1738410244823,0.063,227.26,227.25,74.84960533]
[1738410246229,0.063,227.26,227.25,42.17468981]
[1738410249926,0.063,227.26,227.25,38.42330981]
[1738410250228,0.063,227.26,227.25,20.86850093]
[1738410251824,0.063,227.26,227.25,16.68645376]
[1738410253819,0.063,227.26,227.25,13.41184853]
[1738410254533,0.063,227.26,227.25,21.58057741]
[1738410256432,0.063,227.26,227.25,21.70606741]
[1738410257243,0.063,227.26,227.25,24.97403057]
[1738410260034,0.063,227.26,227.25,16.67981169]
[1738410265525,0.063,227.26,227.25,24.84854057]
[1738410271638,0.063,227.26,227.25,16.67981169]
[1738410280160,0.063,227.26,227.25,24.84854057]
[1738410286560,0.063,227.26,227.25,3.26796316]
[1738410286783,8.23172888,227.26,227.25,3.26796316]
[1738410287165,0.063,227.26,227.25,3.26796316]
[1738410289080,0.063,227.26,227.23,0.03]
[1738410291578,82.6,227.25,227.23,0.03]
[1738410294963,82.6,227.25,227.24,8.16872888]
[1738410295576,0.063,227.26,227.24,21.70606741]
[1738410295776,0.063,227.26,227.25,21.58057741]
[1738410298078,0.063,227.26,227.25,13.41184853]
[1738410301891,0.063,227.26,227.25,21.58057741]
[1738410302077,0.063,227.26,227.25,13.41184853]
[1738410303009,0.063,227.26,227.25,26.10646741]
[1738410303665,0.063,227.26,227.25,21.70606741]
[1738410305900,0.063,227.26,227.25,13.41184853]
[1738410306085,8.23172888,227.26,227.23,6.91195915]
[1738410306583,8.23172888,227.26,227.23,0.03]
[1738410307305,0.063,227.26,227.23,0.03]
[1738410308500,0.063,227.26,227.23,8.19872888]
[1738410308803,0.063,227.26,227.24,8.16872888]
[1738410309708,0.063,227.26,227.23,0.03]
[1738410312790,0.063,227.26,227.23,8.19872888]
[1738410317127,0.063,227.26,227.25,8.16872888]
[1738410317423,0.063,227.26,227.25,21.70606741]
[1738410319110,0.063,227.26,227.25,26.10646741]
[1738410320631,0.063,227.26,227.25,32.98842656]
[1738410321813,0.063,227.26,227.25,28.58802656]
[1738410322942,8.23172888,227.26,227.25,6.88195915]
[1738410323406,82.6,227.25,227.23,6.91195915]
[1738410323612,8.16872888,227.24,227.23,6.91195915]
[1738410324522,8.16872888,227.24,227.23,0.03]
[1738410328232,8.29421888,227.24,227.23,0.03]
[1738410330128,8.29421888,227.24,227.18,0.03]
[1738410330129,0.12549,227.2,227.18,0.03]
[1738410330435,8.16872888,227.19,227.18,0.03]
[1738410331335,8.41970888,227.19,227.18,0.03]
[1738410333316,15.04110888,227.19,227.18,0.03]
[1738410333513,16.13329888,227.19,227.18,0.03]
[1738410333917,48.8082144,227.19,227.18,0.03]
[1738410334218,20.25098,227.16,227.11,0.03]
[1738410334538,8.29421888,227.12,227.11,0.03]
[1738410337338,8.41970888,227.12,227.11,0.03]
[1738410337512,8.16872888,227.03,227.0,500.03]
[1738410338333,8.16872888,227.02,227.0,500.03]
[1738410338941,8.16872888,227.03,227.0,500.03]
[1738410340843,8.16872888,227.05,227.0,500.03]
[1738410341541,8.16872888,227.06,227.0,500.03]
[1738410341917,82.6,227.05,227.0,500.03]
[1738410344843,90.76872888,227.05,227.0,500.03]
[1738410347852,82.6,227.04,227.0,500.03]
[1738410353054,82.6,227.04,227.01,13.41184853]
[1738410353263,82.6,227.04,227.03,21.58057741]
[1738410354730,82.6,227.04,227.03,25.98527741]
[1738410356625,82.6,227.04,227.03,26.11076741]
[1738410356826,82.6,227.12,227.04,17.94163853]
[1738410357050,82.6,227.11,227.07,8.16872888]
[1738410357252,82.6,227.11,227.1,8.16872888]
[1738410359154,82.663,227.11,227.09,8.16872888]
[1738410360840,82.663,227.11,227.08,21.58057741]
[1738410362165,82.663,227.11,227.07,8.16872888]
[1738410364153,82.663,227.11,227.07,21.58057741]
[1738410364359,82.663,227.11,227.08,13.41184853]
[1738410365061,82.663,227.11,227.08,21.58057741]
[1738410367662,0.063,227.11,227.1,43.21216741]
[1738410368870,0.063,227.11,227.1,47.61546741]
[1738410369654,0.063,227.11,227.1,34.91794853]
[1738410369858,0.063,227.11,227.06,2.9]
[1738410370266,0.063,227.11,227.07,13.41184853]
[1738410370569,0.063,227.11,227.07,21.58057741]
[1738410373648,0.063,227.11,227.07,13.41184853]
[1738410374467,0.063,227.11,227.07,21.58057741]
[1738410376374,0.063,227.11,227.09,8.16872888]
[1738410377570,0.063,227.11,227.08,8.29421888]
[1738410377771,0.063,227.11,227.07,20.0]
[1738410378677,0.063,227.11,227.08,13.41184853]
[1738410383866,0.063,227.11,227.05,21.5061]
[1738410384072,0.063,227.11,227.02,13.02425915]
[1738410384073,8.16872888,227.06,227.02,6.88195915]
[1738410385359,8.16872888,227.07,227.03,13.41184853]
[1738410385569,8.16872888,227.08,227.03,13.41184853]
[1738410385765,82.6,227.09,227.03,21.58057741]
[1738410385954,82.6,227.09,227.05,13.41184853]
[1738410386157,82.6,227.09,227.07,13.41184853]
[1738410386361,0.063,227.11,227.08,8.16872888]
[1738410386563,0.063,227.11,227.09,13.41184853]
[1738410386791,0.063,227.11,227.09,21.58057741]
[1738410387863,0.063,227.11,227.1,21.58057741]
[1738410388298,0.063,227.11,227.1,21.70606741]
[1738410391987,0.063,227.11,227.1,21.95704741]
[1738410392786,0.063,227.11,227.1,22.95704741]
[1738410393795,0.063,227.11,227.1,23.08253741]
[1738410396001,0.063,227.11,227.1,23.11253741]
[1738410398496,0.063,227.11,227.1,27.51583741]
[1738410400095,0.063,227.11,227.1,28.51583741]
[1738410400281,0.063,227.11,227.1,29.17607195]
[1738410400687,0.063,227.11,227.1,30.29293634]
[1738410401374,0.063,227.11,227.1,37.17489549]
[1738410403908,0.063,227.11,227.1,43.51293634]
[1738410404387,0.063,227.11,227.1,30.29293634]
[1738410405803,0.063,227.11,227.1,44.05685465]
[1738410406493,0.063,227.22,227.14,20.50196]
[1738410406680,0.063,227.22,227.21,21.70606741]
[1738410407694,0.063,227.22,227.21,26.10726741]
[1738410408204,0.063,227.22,227.21,26.35824741]
[1738410409410,0.063,227.22,227.21,26.10726741]
[1738410409599,0.063,227.22,227.21,13.53733853]
[1738410410189,0.063,227.22,227.21,21.70606741]
[1738410412117,0.063,227.22,227.21,13.53733853]
[1738410415013,0.063,227.22,227.21,13.41184853]
[1738410417631,0.063,227.22,227.21,21.58057741]
[1738410417819,0.063,227.22,227.21,21.70606741]
[1738410418314,0.063,227.22,227.21,26.10726741]
[1738410419120,0.063,227.22,227.21,28.09853741]
[1738410420816,0.063,227.22,227.21,13.53733853]
[1738410421006,0.063,227.22,227.21,16.29184853]
[1738410422502,8.23172888,227.22,227.15,8.16872888]
[1738410422697,8.16872888,227.2,227.16,2.88]
[1738410423902,8.16872888,227.2,227.17,13.41184853]
[1738410424108,0.063,227.22,227.13,19.5725321]
[1738410424109,8.16872888,227.18,227.13,6.87561322]
[1738410424342,8.16872888,227.2,227.14,13.41184853]
[1738410424828,90.76872888,227.21,227.15,0.12549]
[1738410425037,82.6,227.21,227.15,8.29421888]
[1738410428145,82.6,227.21,227.16,21.58057741]
[1738410428303,82.6,227.21,227.18,21.58057741]
[1738410429918,0.063,227.22,227.2,21.58057741]
[1738410430125,0.063,227.22,227.21,8.16872888]
[1738410434041,0.063,227.22,227.2,21.58057741]
[1738410436021,0.063,227.22,227.21,21.70606741]
[1738410437849,0.063,227.26,227.22,13.53733853]
[1738410438035,0.063,227.26,227.25,21.95704741]
[1738410438234,0.063,227.26,227.25,24.96253741]
[1738410438440,0.063,227.26,227.25,57.63745293]
[1738410439148,0.063,227.26,227.25,62.03785293]
[1738410439951,0.063,227.26,227.25,29.36293741]
[1738410440258,0.063,227.26,227.25,63.03785293]
[1738410441257,8.23172888,227.26,227.23,6.87561322]
[1738410441837,8.23172888,227.26,227.2,13.41184853]
[1738410443156,8.23172888,227.26,227.21,0.03]
[1738410443759,12.85512063,227.26,227.21,0.03]
[1738410444457,12.73900659,227.26,227.21,0.03]
[1738410445633,12.79212063,227.29,227.22,12.91761063]
[1738410445841,12.85512063,227.3,227.23,26.20396916]
[1738410446158,0.063,227.3,227.23,26.20396916]
[1738410448468,0.063,227.3,227.25,13.41184853]
[1738410448761,0.063,227.3,227.25,26.20396916]
[1738410450163,0.063,227.3,227.26,0.12549]
[1738410450361,0.063,227.3,227.25,13.41184853]
[1738410450544,12.85512063,227.3,227.25,13.41184853]
[1738410451047,12.85512063,227.3,227.24,13.53733853]
[1738410451245,12.79212063,227.29,227.24,13.41184853]
[1738410451459,12.79212063,227.29,227.21,0.03]
[1738410451460,12.79212063,227.28,227.21,12.82212063]
[1738410451757,12.79212063,227.27,227.22,2.9]
[1738410452063,12.79212063,227.27,227.23,13.41184853]
[1738410454864,12.79212063,227.27,227.23,13.44184853]
[1738410455053,12.85512063,227.27,227.23,13.44184853]
[1738410456067,0.063,227.27,227.23,13.44184853]
[1738410457167,12.79212063,227.26,227.23,13.44184853]
[1738410457364,82.6,227.25,227.23,0.03]
[1738410457586,95.39212063,227.24,227.23,0.03]
[1738410458978,12.79212063,227.24,227.23,0.0001]
[1738410459960,20.0,227.22,227.21,0.0001]
[1738410460158,32.79212063,227.22,227.21,0.0001]
[1738410461147,32.91761063,227.22,227.21,0.0001]
[1738410461856,33.91761063,227.22,227.21,0.0001]
[1738410462054,32.91761063,227.22,227.21,0.0001]
[1738410462253,40.25851063,227.22,227.21,0.0001]
[1738410462876,41.25851063,227.22,227.21,0.0001]
[1738410463078,0.12549,227.19,227.11,0.03]
[1738410463378,12.79212063,227.12,227.11,0.03]
[1738410464571,12.91761063,227.12,227.11,0.03]
[1738410467378,12.79212063,227.12,227.11,0.03]
[1738410471085,12.91761063,227.12,227.11,0.03]
[1738410471273,12.91761063,227.12,227.11,0.0001]
[1738410471274,21.25851063,227.12,227.11,0.0001]
[1738410472170,21.25851063,227.12,227.1,0.03]
[1738410472171,0.12549,227.08,227.0,500.03]
[1738410472370,12.79212063,227.04,227.0,500.03]
[1738410472887,12.79212063,227.05,227.0,500.03]
[1738410473884,0.12549,227.08,227.0,500.03]
[1738410473885,12.79212063,227.04,227.0,500.03]
[1738410474066,12.79212063,227.03,227.0,500.03]
[1738410474471,12.79212063,227.05,227.0,500.03]
[1738410475269,95.39212063,227.07,227.0,512.82212063]
[1738410475466,12.79212063,227.06,227.0,500.03]
[1738410475886,95.39212063,227.07,227.01,13.41184853]
[1738410476691,12.79212063,227.06,227.01,13.41184853]
[1738410477687,12.79212063,227.05,227.01,13.41184853]
[1738410478711,95.39212063,227.06,227.01,13.41184853]
[1738410479299,95.27266378,227.06,227.01,13.41184853]
[1738410479809,95.27266378,227.06,227.01,13.44184853]
[1738410480307,82.48054315,227.06,227.01,26.23396916]
[1738410480472,82.48054315,227.06,227.03,13.41184853]
[1738410481198,82.48054315,227.06,227.03,12.79212063]
[1738410481387,82.48054315,227.06,227.05,26.20396916]
[1738410481570,12.79212063,227.15,227.06,15.06173853]
[1738410481776,12.79212063,227.15,227.09,13.41184853]
[1738410482500,12.79212063,227.15,227.08,13.41184853]
[1738410483189,12.79212063,227.15,227.08,26.20396916]
[1738410483506,13.79212063,227.26,227.11,13.41184853]
[1738410483507,12.79212063,227.17,227.11,13.41184853]
[1738410483805,12.79212063,227.19,227.12,12.91761063]
[1738410483995,95.27266378,227.2,227.12,12.91761063]
[1738410484196,12.79212063,227.19,227.12,12.91761063]
[1738410485816,12.79212063,227.18,227.1,18.86722063]
[1738410486019,12.79212063,227.17,227.11,13.41184853]
[1738410487603,12.79212063,227.16,227.11,13.41184853]
[1738410487905,12.79212063,227.15,227.11,13.41184853]
[1738410488279,12.79212063,227.16,227.11,13.41184853]
[1738410488682,12.79212063,227.18,227.11,26.20396916]
[1738410488876,95.27266378,227.2,227.14,13.41184853]
[1738410489095,12.85512063,227.21,227.14,12.79212063]
[1738410489276,12.85512063,227.21,227.16,13.41184853]
[1738410489277,0.063,227.21,227.16,13.41184853]
[1738410489483,0.063,227.21,227.17,0.12549]
[1738410489809,0.063,227.21,227.19,13.41184853]
[1738410490508,0.063,227.21,227.17,13.53733853]
[1738410490914,0.063,227.21,227.17,13.41184853]
[1738410491091,12.79212063,227.18,227.15,1.5244]
[1738410491405,12.79212063,227.17,227.13,20.0]